bitfinex-derivatives/quotes_BTCF0:USTF0_20240903
["timestamp","ask_amount","ask_price","bid_price","bid_amount"]
[1725390107007,0.3770996,57990.0,57989.0,0.136044]
[1725390107411,0.3780996,57990.0,57989.0,0.136044]
[1725390108416,0.3820996,57990.0,57986.0,0.24]
[1725390108617,0.3820996,57990.0,57983.0,0.3608]
[1725390108618,0.0004,57987.0,57983.0,0.6008]
[1725390108818,0.0004,57987.0,57986.0,0.086249]
[1725390110626,0.0004,57987.0,57977.0,0.004]
[1725390110627,0.086255,57982.0,57977.0,0.004]
[1725390110916,0.45409572,57982.0,57973.0,0.004]
[1725390111616,1.65775072,57982.0,57973.0,0.004]
[1725390111813,0.086267,57974.0,57973.0,0.004]
[1725390112020,0.086279,57966.0,57965.0,0.004]
[1725390112316,0.326679,57966.0,57960.0,0.086287]
[1725390112504,0.3608,57962.0,57960.0,0.086287]
[1725390112700,0.3558,57962.0,57960.0,0.086287]
[1725390112904,0.0004,57961.0,57960.0,0.086287]
[1725390113099,0.0004,57961.0,57955.0,0.08655359]
[1725390113100,0.086686,57961.0,57955.0,0.08655359]
[1725390113401,0.086686,57961.0,57960.0,0.0116]
[1725390113606,0.086286,57961.0,57960.0,0.0116]
[1725390113805,0.081286,57961.0,57960.0,0.0116]
[1725390114102,0.081286,57961.0,57955.0,0.00025859]
[1725390114103,0.086293,57956.0,57955.0,0.00025859]
[1725390114303,0.086293,57956.0,57947.0,0.004]
[1725390114304,1.11844,57956.0,57947.0,0.004]
[1725390114507,1.11844,57956.0,57943.0,0.004]
[1725390114508,0.24,57948.0,57943.0,0.004]
[1725390114716,0.3608,57950.0,57940.0,0.086317]
[1725390114717,0.3608,57944.0,57940.0,0.086317]
[1725390115008,0.3608,57945.0,57940.0,0.086317]
[1725390115519,0.3508,57945.0,57940.0,0.086317]
[1725390115704,0.00025882,57948.0,57942.0,0.24]
[1725390115907,0.00025882,57948.0,57947.0,0.24]
[1725390117710,0.00025882,57948.0,57947.0,0.242]
[1725390118411,0.0158959,57948.0,57947.0,0.242]
[1725390118606,0.00025882,57948.0,57947.0,0.242]
[1725390119310,0.00025882,57948.0,57947.0,0.328307]
[1725390119706,0.00065882,57948.0,57947.0,0.328307]
[1725390121202,0.00065882,57948.0,57947.0,0.088307]
[1725390121607,0.24065882,57948.0,57947.0,0.002]
[1725390121908,0.68776382,57948.0,57947.0,0.002]
[1725390122106,0.73776382,57948.0,57947.0,0.002]
[1725390122328,0.001,57971.0,57948.0,0.086304]
[1725390122511,0.3608,57972.0,57963.0,0.24]
[1725390122713,0.4808,57972.0,57961.0,0.0453]
[1725390122913,0.24,57969.0,57961.0,0.0453]
[1725390123408,0.24,57969.0,57964.0,0.086281]
[1725390123616,0.00025882,57971.0,57965.0,0.24]
[1725390124208,0.011,57969.0,57965.0,0.24]
[1725390124622,0.011,57969.0,57968.0,0.24]
[1725390124813,0.01025882,57971.0,57968.0,0.24]
[1725390126221,0.12025882,57971.0,57968.0,0.24]
[1725390126524,0.11025882,57971.0,57967.0,0.086277]
[1725390126824,0.009,57969.0,57967.0,0.086277]
[1725390127017,0.119,57969.0,57965.0,0.001]
[1725390127219,0.3598,57966.0,57964.0,0.086281]
[1725390127419,0.0004,57965.0,57964.0,0.086281]
[1725390127824,0.3592,57966.0,57964.0,0.086281]
[1725390128019,0.3592,57966.0,57964.0,0.326281]
[1725390128324,0.3592,57966.0,57965.0,0.08628]
[1725390128513,0.3622,57966.0,57965.0,0.08628]
[1725390129722,0.003,57966.0,57965.0,0.58186]
[1725390129920,0.003,57966.0,57965.0,0.62706]
[1725390130227,0.00025882,57971.0,57970.0,0.086273]
[1725390130423,0.00025882,57971.0,57970.0,0.326273]
[1725390130635,0.00025882,57971.0,57970.0,0.773346]
[1725390131623,0.00925882,57971.0,57970.0,0.774346]
[1725390133330,0.00125882,57971.0,57970.0,0.773346]
[1725390134026,0.00125882,57971.0,57970.0,0.859619]
[1725390136120,0.00125882,57971.0,57970.0,0.447073]
[1725390136327,0.00125882,57971.0,57965.0,0.36176]
[1725390136532,0.2404,57966.0,57965.0,0.08628]
[1725390136722,0.086679,57966.0,57965.0,0.08628]
[1725390137228,0.2394,57968.0,57959.0,0.24025882]
[1725390137428,0.2394,57968.0,57966.0,0.086278]
[1725390137625,0.086278,57967.0,57963.0,0.086283]
[1725390137836,0.086278,57967.0,57964.0,0.08628]
[1725390137837,0.005,57966.0,57964.0,0.08628]
[1725390138040,0.115,57966.0,57964.0,0.08628]
[1725390138632,0.11,57966.0,57964.0,0.08628]
[1725390139426,0.086278,57967.0,57964.0,0.08628]
[1725390139625,0.01610791,57968.0,57966.0,0.086278]
[1725390139828,0.086274,57969.0,57966.0,0.086278]
[1725390140027,0.136274,57969.0,57966.0,0.086278]
[1725390140342,0.24,57968.0,57963.0,0.086282]
[1725390140531,0.086279,57966.0,57963.0,0.086282]
[1725390140723,0.085279,57966.0,57963.0,0.086282]
[1725390141121,0.085279,57966.0,57959.0,0.00025882]
[1725390141122,0.086287,57960.0,57959.0,0.00025882]
[1725390141321,0.446087,57960.0,57959.0,0.00025882]
[1725390141527,0.546087,57960.0,57959.0,0.00025882]
[1725390141737,1.749974,57960.0,57959.0,0.00025882]
[1725390141930,0.086297,57954.0,57950.0,0.24]
[1725390142233,0.086297,57954.0,57951.0,0.086301]
[1725390143031,0.086297,57954.0,57953.0,0.05123364]
[1725390143831,0.089297,57954.0,57953.0,0.05123364]
[1725390144228,0.089697,57954.0,57953.0,0.05123364]
[1725390144421,0.089697,57954.0,57952.0,0.05123364]
[1725390144628,0.0004,57953.0,57951.0,0.086301]
[1725390144834,0.0004,57952.0,57951.0,0.086301]
[1725390145032,0.0004,57953.0,57951.0,0.086301]
[1725390146130,0.01612998,57953.0,57951.0,0.086301]
[1725390146335,0.0004,57953.0,57951.0,0.086301]
[1725390146727,0.091297,57954.0,57953.0,0.0006]
[1725390147328,0.10768666,57954.0,57953.0,0.0006]
[1725390147537,0.02138966,57954.0,57953.0,0.13826087]
[1725390147739,0.02138966,57954.0,57953.0,0.326898]
[1725390148733,0.01638966,57954.0,57953.0,0.326298]
[1725390149040,0.133493,57956.0,57954.0,0.086296]
[1725390149231,0.133493,57956.0,57955.0,0.05136352]
[1725390149432,0.133493,57956.0,57954.0,0.13765952]
[1725390150335,0.0572,57956.0,57955.0,0.086295]
[1725390150536,0.02613347,57956.0,57955.0,0.086295]
[1725390150727,0.02613347,57956.0,57955.0,0.13765852]
[1725390150930,0.02613347,57956.0,57955.0,0.17259]
[1725390151130,0.01,57956.0,57955.0,0.258885]
[1725390151339,0.4151,57973.0,57956.0,0.51764]
[1725390151530,0.4151,57973.0,57969.0,0.24]
[1725390151531,0.086273,57970.0,57969.0,0.24]
[1725390151751,0.42285236,57973.0,57969.0,0.24]
[1725390151928,0.50912036,57973.0,57972.0,0.08627]
[1725390152744,0.02775236,57973.0,57972.0,0.73841891]
[1725390153037,0.02775236,57973.0,57972.0,0.68707]
[1725390153244,0.02975236,57973.0,57972.0,0.68707]
[1725390153431,0.014,57973.0,57972.0,0.68707]
[1725390153631,0.014,57973.0,57972.0,0.73842271]
[1725390153831,0.014,57973.0,57972.0,0.68707]
[1725390154341,0.014,57973.0,57972.0,0.73842283]
[1725390155042,0.014,57973.0,57972.0,0.49842283]
[1725390155244,0.014,57973.0,57972.0,0.44707]
[1725390156447,0.02999188,57973.0,57972.0,0.44707]
[1725390156640,0.014,57973.0,57972.0,0.44707]
[1725390156943,0.24,57977.0,57973.0,0.086267]
[1725390157140,0.446262,57977.0,57973.0,0.086267]
[1725390157333,0.24,57974.0,57972.0,0.001]
[1725390157539,0.0004,57973.0,57972.0,0.001]
[1725390157736,0.086668,57973.0,57972.0,0.001]
[1725390157936,1.006668,57973.0,57972.0,0.001]
[1725390159135,1.006668,57973.0,57967.0,0.00025882]
[1725390159136,0.085272,57971.0,57967.0,0.00025882]
[1725390159333,0.0004,57968.0,57967.0,0.00025882]
[1725390159846,0.085673,57970.0,57967.0,0.00025882]
[1725390160644,0.086276,57968.0,57967.0,0.00025882]
[1725390161041,0.003,57971.0,57967.0,0.08653482]
[1725390161247,0.089271,57971.0,57969.0,0.086274]
[1725390161939,0.004,57970.0,57969.0,0.086274]
[1725390163647,0.01624703,57971.0,57969.0,0.086274]
[1725390163843,0.01624703,57971.0,57969.0,0.087274]
[1725390163844,0.006,57971.0,57969.0,0.087274]
[1725390164044,0.006,57971.0,57970.0,0.086273]
[1725390164450,0.006,57971.0,57970.0,0.687073]
[1725390165139,0.006,57971.0,57970.0,0.773346]
[1725390165445,0.01635748,57972.0,57971.0,0.086271]
[1725390165646,0.04655882,57978.0,57977.0,0.086262]
[1725390165851,0.01594881,57978.0,57977.0,0.086262]
[1725390166654,0.01594881,57978.0,57977.0,1.376226]
[1725390166655,0.00025882,57978.0,57977.0,1.376226]
[1725390166841,0.00872611,57991.0,57987.0,0.086247]
[1725390167149,0.01628602,57988.0,57987.0,0.687047]
[1725390167348,0.086235,57995.0,57988.0,0.086245]
[1725390167552,0.00873161,57994.0,57991.0,0.24]
[1725390167849,0.086235,57995.0,57991.0,0.24]
[1725390168349,0.0947413,57995.0,57991.0,0.24]
[1725390168859,0.3766299,57993.0,57991.0,0.24]
[1725390169152,0.3866299,57993.0,57991.0,0.241]
[1725390170751,0.0258299,57993.0,57991.0,0.241]
[1725390171659,0.1120689,57993.0,57991.0,0.241]
[1725390172161,0.0258299,57993.0,57992.0,0.44704]
[1725390172344,0.01,57993.0,57992.0,0.44704]
[1725390173358,0.0158833,57994.0,57993.0,0.086238]
[1725390173655,0.00025882,57998.0,57993.0,0.24]
[1725390173852,0.00025882,57998.0,57997.0,0.6008]
[1725390175058,0.00025882,57998.0,57997.0,0.326232]
[1725390175750,0.00825882,57998.0,57997.0,0.327232]
[1725390176458,0.02419013,57998.0,57997.0,0.327232]
[1725390179463,0.02419013,57998.0,57997.0,0.688032]
[1725390182159,0.02419013,57998.0,57997.0,0.001]
[1725390182160,0.11042113,57998.0,57997.0,0.001]
[1725390189362,0.17042113,57998.0,57997.0,0.001]
[1725390189764,0.11042113,57998.0,57997.0,0.001]
[1725390190166,0.44533937,57998.0,57997.0,0.001]
[1725390190373,0.55719465,57998.0,57997.0,0.001]
[1725390190669,0.47096365,57998.0,57997.0,0.001]
[1725390190969,0.00825882,57998.0,57997.0,0.448032]
[1725390192166,0.0531869,57998.0,57997.0,0.447032]
[1725390192372,0.0561869,57998.0,57997.0,0.447032]
[1725390192776,0.00325882,57998.0,57997.0,0.447032]
[1725390193071,0.05618746,57998.0,57997.0,0.447032]
[1725390193868,0.00325882,57998.0,57997.0,0.447032]
[1725390194377,0.00325882,57998.0,57997.0,0.086232]
[1725390196971,0.00325882,57998.0,57997.0,0.447032]
[1725390197165,0.00325882,57998.0,57997.0,1.050544]
[1725390197373,0.00325882,57998.0,57997.0,1.650544]
[1725390198077,0.004,58005.0,58004.0,0.172444]
[1725390198275,0.086214,58010.0,58009.0,0.086213]
[1725390198469,0.086214,58010.0,58009.0,0.687013]
[1725390198666,0.0478,58016.0,58009.0,0.6008]
[1725390198865,0.086204,58017.0,58016.0,0.086202]
[1725390199065,0.086204,58017.0,58016.0,0.326202]
[1725390199470,0.086204,58017.0,58016.0,0.086202]
[1725390200479,0.006,58017.0,58016.0,0.087202]
[1725390200872,0.006,58017.0,58016.0,0.327202]
[1725390202776,0.006,58017.0,58016.0,1.530486]
[1725390203567,0.006,58017.0,58016.0,1.85669]
[1725390203989,0.006,58017.0,58016.0,1.87253477]
[1725390204481,0.006,58017.0,58016.0,1.63253477]
[1725390204683,0.006,58017.0,58016.0,1.87253477]
[1725390204883,0.006,58017.0,58016.0,1.63253477]
[1725390205478,0.006,58017.0,58016.0,1.03253477]
[1725390206285,0.006,58017.0,58016.0,0.413406]
[1725390208374,0.00025858,58022.0,58021.0,0.086197]
[1725390208575,0.00025858,58022.0,58021.0,0.686997]
[1725390209788,0.00025858,58022.0,58021.0,0.773194]
[1725390209986,0.00325858,58022.0,58021.0,0.773194]
[1725390210194,0.05616676,58022.0,58021.0,0.686997]
[1725390210572,0.05616676,58022.0,58021.0,0.773194]
[1725390211681,0.05616676,58022.0,58021.0,0.686997]
[1725390212375,0.05316676,58022.0,58021.0,0.687997]
[1725390212579,0.05316676,58022.0,58021.0,0.774194]
[1725390212783,0.05316676,58022.0,58021.0,0.687997]
[1725390212991,0.05316676,58022.0,58021.0,0.686997]
[1725390213877,0.05316676,58022.0,58021.0,0.773194]
[1725390214075,0.05316676,58022.0,58021.0,0.686997]
[1725390217190,0.05316894,58022.0,58021.0,0.686997]
[1725390217387,0.00025858,58022.0,58021.0,0.686997]
[1725390221087,0.08645358,58022.0,58021.0,0.6008]
[1725390221292,0.18495358,58022.0,58021.0,0.6008]
[1725390225295,0.29969364,58022.0,58021.0,0.6008]
[1725390225795,0.60967712,58022.0,58021.0,0.6008]
[1725390226095,0.172414,58014.0,58011.0,0.00025858]
[1725390226301,0.086221,58005.0,58004.0,0.004]
[1725390226593,0.086226,58001.0,58000.0,0.00104]
[1725390226800,0.43920688,58001.0,57995.0,0.6008]
[1725390227092,0.43920688,58001.0,57995.0,0.3608]
[1725390227093,0.086634,57996.0,57995.0,0.3608]
[1725390227303,0.06182769,57996.0,57989.0,0.24]
[1725390227594,0.086241,57992.0,57989.0,0.24]
[1725390227892,0.0004,57990.0,57989.0,0.24]
[1725390228093,0.086643,57990.0,57989.0,0.24]
[1725390228398,0.14847069,57990.0,57987.0,0.00025858]
[1725390228593,0.0004,57988.0,57987.0,0.00025858]
[1725390228798,0.326246,57988.0,57987.0,0.00025858]
[1725390229015,0.38807369,57988.0,57987.0,0.00025858]
[1725390229892,1.26623369,57988.0,57987.0,0.00025858]
[1725390230188,0.086258,57980.0,57979.0,0.004]
[1725390230403,0.086265,57975.0,57970.0,0.004]
[1725390230605,0.24,57972.0,57965.0,0.3608]
[1725390230809,0.24,57972.0,57965.0,0.6008]
[1725390231203,0.06182769,57974.0,57965.0,0.68708]
[1725390231409,0.00025858,57974.0,57965.0,0.68708]
[1725390232295,0.00025858,57974.0,57965.0,0.68908]
[1725390233508,0.10219956,57974.0,57965.0,0.68908]
[1725390233700,0.24,57971.0,57965.0,0.68908]
[1725390234107,0.01593256,57974.0,57970.0,0.3608]
[1725390234317,0.01593256,57974.0,57973.0,0.326268]
[1725390235615,0.01593256,57974.0,57973.0,0.327268]
[1725390236809,0.01593256,57974.0,57973.0,0.001]
[1725390237211,0.01593256,57974.0,57973.0,0.241]
[1725390237212,0.00025858,57974.0,57973.0,0.241]
[1725390237515,0.00025858,57974.0,57973.0,0.001]
[1725390238712,0.00025858,57974.0,57973.0,0.087268]
[1725390239012,0.00025858,57974.0,57973.0,0.327268]
[1725390239513,0.24,57985.0,57973.0,0.327268]
[1725390239514,0.3654,57994.0,57983.0,0.086253]
[1725390239709,0.3655,57999.0,57975.0,0.086265]
[1725390239710,0.004,57995.0,57982.0,0.086254]
[1725390239904,0.086234,57996.0,57988.0,0.24]
[1725390240104,0.24,57997.0,57993.0,0.086238]
[1725390240315,0.24,57997.0,57988.0,0.24]
[1725390240316,0.24,57997.0,57994.0,0.086237]
[1725390240511,0.34205933,57997.0,57990.0,0.086242]
[1725390240711,0.34205933,57997.0,57991.0,0.086241]
[1725390241013,0.01582733,57997.0,57996.0,0.24]
[1725390241210,0.00025858,58001.0,57996.0,0.24]
[1725390241410,0.00025858,58001.0,57998.0,0.086231]
[1725390242019,0.00025858,58001.0,57999.0,0.086229]
[1725390242420,0.00125858,58001.0,57999.0,0.086229]
[1725390242720,0.01755772,58001.0,57999.0,0.086228]
[1725390242909,0.00125858,58001.0,57999.0,0.086228]
[1725390243413,1.47929858,58001.0,57989.0,0.00425858]
[1725390243611,1.47929858,58001.0,57992.0,0.08624]
[1725390243612,0.24,57993.0,57992.0,0.08624]
[1725390244619,0.085232,57997.0,57993.0,0.086238]
[1725390245516,0.24,57994.0,57992.0,0.001]
[1725390245712,0.24,57994.0,57989.0,0.00025858]
[1725390245912,0.239,57991.0,57989.0,0.00025858]
[1725390246910,0.239,57991.0,57990.0,0.086242]
[1725390247720,0.374937,57994.0,57990.0,0.086242]
[1725390247923,0.001,57991.0,57990.0,0.086242]
[1725390248513,0.3608,57995.0,57993.0,0.086237]
[1725390249013,0.37651085,57995.0,57994.0,0.326237]
[1725390249910,0.3608,57995.0,57994.0,0.326237]
[1725390250421,0.3628,57995.0,57994.0,0.326237]
[1725390250624,0.002,57995.0,57994.0,0.326237]
[1725390250917,0.002,57995.0,57994.0,0.498711]
[1725390251125,0.00025858,58001.0,58000.0,0.172456]
[1725390251321,0.00025858,58001.0,58000.0,0.773256]
[1725390252121,0.00025858,58001.0,58000.0,0.87547808]
[1725390252324,0.004,58012.0,58011.0,0.086212]
[1725390252524,0.447004,58017.0,58011.0,0.6008]
[1725390252716,0.447004,58017.0,58015.0,0.086205]
[1725390252911,0.086204,58016.0,58015.0,0.086205]
[1725390253320,0.3608,58017.0,58015.0,0.086205]
[1725390253508,0.37645804,58017.0,58015.0,0.086205]
[1725390254117,0.002,58016.0,58015.0,0.087205]
[1725390255218,0.37645804,58017.0,58015.0,0.086205]
[1725390255417,0.37845804,58017.0,58015.0,0.087205]
[1725390256216,0.37845804,58017.0,58016.0,0.086204]
[1725390257129,0.37645804,58017.0,58016.0,0.086204]
[1725390257517,0.42937867,58017.0,58016.0,0.086204]
[1725390257715,0.43137867,58017.0,58016.0,0.086204]
[1725390258317,0.43137867,58017.0,58016.0,0.087204]
[1725390259024,0.002,58017.0,58016.0,0.534208]
[1725390260132,0.00025858,58021.0,58020.0,0.172396]
[1725390260428,0.00025858,58021.0,58020.0,0.412396]
[1725390261333,0.00225858,58021.0,58020.0,0.413396]
[1725390262929,0.00225858,58021.0,58020.0,0.412396]
[1725390264525,0.00225858,58021.0,58020.0,0.326198]
[1725390267231,0.00225858,58021.0,58017.0,0.086202]
[1725390267530,0.086203,58017.0,58016.0,0.3608]
[1725390268026,0.086198,58020.0,58016.0,0.3608]
[1725390268230,0.09865858,58021.0,58016.0,0.3608]
[1725390268231,0.0862,58019.0,58016.0,0.3608]
[1725390268631,0.086202,58018.0,58016.0,0.3608]
[1725390270229,0.086204,58016.0,58015.0,0.24]
[1725390270419,0.086206,58015.0,58012.0,0.08621]
[1725390270824,0.085206,58015.0,58012.0,0.08621]
[1725390271332,0.085206,58015.0,58010.0,0.00025858]
[1725390271333,0.085209,58013.0,58010.0,0.00025858]
[1725390271935,0.085209,58013.0,58010.0,0.08647158]
[1725390272732,0.085209,58013.0,58011.0,0.086211]
[1725390273032,0.085209,58013.0,58012.0,0.001]
[1725390273233,0.004,58015.0,58012.0,0.001]
[1725390273436,0.004,58015.0,58014.0,0.326207]
[1725390273937,0.00025858,58021.0,58020.0,0.086198]
[1725390274124,0.00025858,58021.0,58020.0,0.686998]
[1725390274435,0.00025858,58021.0,58020.0,0.773196]
[1725390275333,0.00025858,58021.0,58020.0,1.976434]
[1725390275525,0.004,58032.0,58031.0,0.086182]
[1725390275828,0.086178,58034.0,58033.0,0.086179]
[1725390276530,0.00849899,58037.0,58033.0,0.086179]
[1725390276730,0.086172,58038.0,58035.0,0.24]
[1725390277233,0.00857318,58037.0,58035.0,0.326176]
[1725390277424,0.05290056,58036.0,58035.0,0.086176]
[1725390277831,0.05290056,58036.0,58033.0,0.001]
[1725390278031,0.05290056,58035.0,58028.0,0.36105858]
[1725390278329,0.24,58032.0,58028.0,0.36105858]
[1725390278539,0.05290056,58031.0,58028.0,0.36105858]
[1725390278736,0.05190056,58031.0,58028.0,0.00025858]
[1725390279433,0.326185,58029.0,58028.0,0.00025858]
[1725390280441,0.326185,58029.0,58028.0,0.00125858]
[1725390280620,0.3880082,58029.0,58028.0,0.00125858]
[1725390280823,0.3880082,58029.0,58028.0,0.00025858]
[1725390281023,0.3940082,58029.0,58028.0,0.00125858]
[1725390283125,0.0678232,58029.0,58028.0,0.00125858]
[1725390283327,0.02200703,58029.0,58028.0,0.00125858]
[1725390283640,0.07491534,58029.0,58028.0,0.00125858]
[1725390285434,0.02200703,58029.0,58028.0,0.00125858]
[1725390285831,0.02200703,58029.0,58028.0,0.08744458]
[1725390286133,0.006,58029.0,58028.0,0.53443058]
[1725390286338,0.006,58029.0,58028.0,1.73761658]
[1725390287235,0.006,58029.0,58028.0,1.75397833]
[1725390287741,0.086167,58041.0,58038.0,0.086171]
[1725390287934,0.086167,58041.0,58038.0,0.326171]
[1725390288327,0.01598597,58041.0,58038.0,0.326171]
[1725390289138,0.00625858,58039.0,58038.0,0.327171]
[1725390292239,0.00625858,58039.0,58038.0,0.087171]
[1725390292646,0.00625858,58039.0,58038.0,0.001]
[1725390293236,0.09242858,58039.0,58038.0,0.001]
[1725390296742,0.00625858,58039.0,58038.0,0.241]
[1725390297137,0.00625858,58039.0,58038.0,0.327171]
[1725390297545,0.00625858,58039.0,58038.0,1.530222]
[1725390297937,0.00625858,58039.0,58038.0,1.016393]
[1725390298143,0.00625858,58039.0,58038.0,0.413342]
[1725390299247,0.00025858,58039.0,58038.0,0.326171]
[1725390299435,0.00025858,58039.0,58038.0,0.327171]
[1725390300641,0.00025858,58039.0,58038.0,1.530222]
[1725390300844,0.00025858,58039.0,58038.0,1.616393]
[1725390301044,0.004,58050.0,58049.0,0.086155]
[1725390301243,0.05288634,58054.0,58052.0,0.08615]
[1725390301444,0.05288634,58053.0,58052.0,0.08615]
[1725390302548,0.01596345,58055.0,58053.0,0.086148]
[1725390302854,0.05288445,58054.0,58053.0,0.086148]
[1725390303149,0.05288445,58054.0,58053.0,0.326148]
[1725390304549,0.05288445,58054.0,58053.0,0.375748]
[1725390304849,0.01652202,58058.0,58057.0,0.086143]
[1725390305048,0.06939871,58058.0,58057.0,0.6008]
[1725390305438,0.06939871,58058.0,58057.0,0.24]
[1725390307448,0.01652202,58058.0,58057.0,0.241]
[1725390308050,0.10266402,58058.0,58057.0,0.001]
[1725390308251,0.46346402,58058.0,58057.0,0.001]
[1725390309747,0.46346402,58058.0,58057.0,0.241]
[1725390309943,0.086125,58070.0,58057.0,0.241]
[1725390309944,0.3648,58078.0,58068.0,0.086127]
[1725390310155,0.0486,58079.0,58068.0,0.6008]
[1725390310452,0.0486,58079.0,58073.0,0.3608]
[1725390310453,0.086117,58075.0,58073.0,0.3608]
[1725390310752,0.086114,58077.0,58073.0,0.3608]
[1725390311345,0.086114,58077.0,58076.0,0.24]
[1725390313745,0.086114,58077.0,58076.0,0.241]
[1725390313950,0.06490788,58079.0,58076.0,0.241]
[1725390314758,0.06490788,58079.0,58076.0,0.001]
[1725390314759,0.086114,58077.0,58076.0,0.001]
[1725390315452,0.086114,58077.0,58076.0,0.241]
[1725390315755,0.20075318,58077.0,58076.0,0.241]
[1725390315960,0.05286585,58077.0,58076.0,0.327115]
[1725390316359,0.05286585,58077.0,58076.0,0.65323]
[1725390316562,0.05286585,58077.0,58076.0,0.41323]
[1725390316951,0.18812788,58077.0,58076.0,0.41323]
[1725390317758,0.18812788,58077.0,58076.0,0.327115]
[1725390317759,0.05285455,58077.0,58076.0,0.327115]
[1725390319762,0.13896855,58077.0,58076.0,0.241]
[1725390322058,0.1389771,58077.0,58076.0,0.241]
[1725390322764,0.086114,58077.0,58076.0,0.241]
[1725390324365,0.446908,58082.0,58079.0,0.08611]
[1725390324366,0.3608,58082.0,58079.0,0.08611]
[1725390324561,0.3608,58082.0,58076.0,0.241]
[1725390324562,0.01623622,58082.0,58081.0,0.24]
[1725390324762,0.086105,58084.0,58081.0,0.24]
[1725390324965,0.086105,58083.0,58081.0,0.24]
[1725390325257,0.086108,58081.0,58079.0,0.24]
[1725390325460,0.24,58080.0,58076.0,0.001]
[1725390325669,0.086123,58071.0,58070.0,0.004]
[1725390325856,0.086523,58071.0,58070.0,0.24]
[1725390326166,0.0004,58077.0,58070.0,0.24]
[1725390326365,0.0004,58077.0,58076.0,0.326115]
[1725390327063,0.086115,58076.0,58067.0,0.330128]
[1725390327367,0.086115,58076.0,58066.0,0.3608]
[1725390327368,0.086124,58070.0,58066.0,0.3608]
[1725390327562,0.085124,58070.0,58067.0,0.24]
[1725390328159,0.085124,58070.0,58069.0,0.24025835]
[1725390328464,0.0491,58071.0,58069.0,0.24025835]
[1725390329266,0.446924,58070.0,58069.0,0.00025835]
[1725390329459,0.494124,58070.0,58069.0,0.00025835]
[1725390329662,0.498124,58070.0,58069.0,0.00125835]
[1725390330051,0.498124,58070.0,58069.0,0.00025835]
[1725390330257,0.494124,58070.0,58069.0,0.00125835]
[1725390330764,0.137324,58070.0,58069.0,0.00125835]
[1725390331860,0.223448,58070.0,58069.0,0.00125835]
[1725390332062,0.32632128,58070.0,58069.0,0.00125835]
[1725390332458,0.19019728,58070.0,58069.0,0.00125835]
[1725390332764,0.14299728,58070.0,58069.0,0.00125835]
[1725390332965,0.14399728,58070.0,58069.0,0.00125835]
[1725390333360,0.14439728,58070.0,58069.0,0.00125835]
[1725390334076,0.13939728,58070.0,58069.0,0.00025835]
[1725390334368,0.14439728,58070.0,58069.0,0.00125835]
[1725390335171,0.20439728,58070.0,58069.0,0.00125835]
[1725390335872,0.20439728,58070.0,58062.0,0.24]
[1725390335873,1.59571328,58070.0,58060.0,0.004]
[1725390336058,0.0004,58061.0,58059.0,0.086139]
[1725390336262,0.05327792,58060.0,58059.0,0.24]
[1725390336576,0.3602,58065.0,58062.0,0.086135]
[1725390336769,0.05287804,58064.0,58062.0,0.086135]
[1725390337070,0.05287804,58063.0,58061.0,0.086137]
[1725390337772,0.05287804,58063.0,58062.0,0.001]
[1725390337773,0.086134,58063.0,58062.0,0.001]
[1725390339275,0.093134,58063.0,58061.0,0.001]
[1725390339564,0.093135,58063.0,58061.0,0.001]
[1725390339768,0.093135,58063.0,58060.0,0.086138]
[1725390339769,0.086135,58063.0,58060.0,0.086138]
[1725390339971,0.086135,58063.0,58062.0,0.001]
[1725390339972,0.093135,58063.0,58062.0,0.001]
[1725390340372,0.086135,58063.0,58060.0,0.086138]
[1725390340569,0.093135,58063.0,58061.0,0.001]
[1725390340961,0.007,58063.0,58061.0,0.001]
[1725390341163,0.007,58063.0,58062.0,0.326136]
[1725390341461,0.007,58063.0,58062.0,0.086136]
[1725390341960,0.37632046,58065.0,58062.0,0.086136]
[1725390342158,0.007,58063.0,58062.0,0.499408]
[1725390342358,0.007,58063.0,58062.0,0.91156083]
[1725390342571,0.01663907,58069.0,58068.0,0.086127]
[1725390342773,0.01663907,58069.0,58068.0,0.686927]
[1725390343361,0.01663907,58069.0,58068.0,0.446927]
[1725390344163,0.02463907,58069.0,58068.0,0.447927]
[1725390346066,0.00825757,58069.0,58068.0,0.774054]
[1725390347761,0.00825757,58069.0,58068.0,1.290694]
[1725390348065,0.00825757,58069.0,58068.0,1.376821]
[1725390348261,0.00825757,58069.0,58068.0,1.4280377]
[1725390349563,0.00825757,58069.0,58068.0,1.376821]
[1725390349776,0.00825757,58069.0,58068.0,1.42808962]
[1725390349979,0.00825757,58069.0,58068.0,0.82532262]
[1725390350168,0.00825757,58069.0,58068.0,0.774054]
[1725390350366,0.00825757,58069.0,58068.0,0.687927]
[1725390350573,0.00825757,58069.0,58068.0,0.087127]
[1725390352077,0.09438257,58069.0,58068.0,0.001]
[1725390352665,0.14725806,58069.0,58068.0,0.001]
[1725390353876,0.16062453,58069.0,58068.0,0.001]
[1725390356266,0.16062434,58069.0,58068.0,0.001]
[1725390357981,0.07449934,58069.0,58068.0,0.087127]
[1725390360281,0.07449934,58069.0,58068.0,0.001]
[1725390360474,0.16062083,58069.0,58068.0,0.001]
[1725390360671,0.10774904,58069.0,58068.0,0.001]
[1725390360878,0.20774904,58069.0,58068.0,0.001]
[1725390361073,0.10774904,58069.0,58068.0,0.001]
[1725390365079,0.15774904,58069.0,58068.0,0.001]
[1725390366179,0.15394904,58069.0,58068.0,0.001]
[1725390367273,0.51474904,58069.0,58068.0,0.001]
[1725390367474,0.57474904,58069.0,58068.0,0.001]
[1725390367686,0.51474904,58069.0,58068.0,0.001]
[1725390368081,0.56474904,58069.0,58068.0,0.001]